fUSD/lending_fUSD_20240122
["ID","MTS","AMOUNT","RATE_DAILY","PERIOD"]
[312536144,1705949438411,-155.38,0.00023801,2]
[312536146,1705949438421,-161.97,0.00023853,2]
[312536148,1705949438430,-155.64,0.00023861,2]
[312536150,1705949438439,-201.13102968,0.00024,2]
[312536152,1705949438449,-306.18581609,0.00024,2]
[312536154,1705949438457,-155.64,0.00024102,2]
[312536156,1705949438467,-167.36,0.00024297,2]
[312536157,1705949438476,-2358.41,0.00024338,2]
[312536160,1705949438486,-155.64,0.00024343,2]
[312536161,1705949438496,-4315.30125189,0.00024344,2]
[312536164,1705949438509,-3716.50874811,0.00024344,2]
[312536166,1705949438518,-250.0,0.00024658,2]
[312536168,1705949438527,-85.52076203,0.00024783,2]
[312536171,1705949438552,-3117.87257408,0.00024783,2]
[312536173,1705949438567,-745.60361722,0.00024783,2]
[312536176,1705949438578,-2278.8,0.00024783,2]
[312536178,1705949438589,-9278.89769665,0.00024783,2]
[312536183,1705949438624,-4525.29631233,0.00024783,2]
[312536185,1705949438635,-1172.95083769,0.00024783,2]
[312536187,1705949438644,-5721.94293816,0.00024803,2]
[312536189,1705949438654,-1417.52,0.00024903,2]
[312536191,1705949438664,-202.08717836,0.00025,2]
[312536193,1705949438677,-303.55478187,0.00025,2]
[312536195,1705949438686,-1249.31192892,0.00025,2]
[312536197,1705949438696,-158.71925605,0.00025,2]
[312536199,1705949438706,-167.43304946,0.00025,2]
[312536201,1705949438719,-1584.56156338,0.00025,2]
[312536203,1705949438729,-933.94016922,0.00025,2]
[312536205,1705949438739,-484.16836194,0.00025,2]
[312536207,1705949438748,-2723.07482637,0.00025182,2]
[312536213,1705949438890,-5308.73517363,0.00025182,2]
[312536214,1705949438899,-159.62699238,0.00025247,2]
[312536215,1705949438908,-201.56999105,0.000253,2]
[312536216,1705949438918,-432.2,0.00025304,2]
[312536218,1705949438928,-549.18384813,0.00025396,2]
[312536220,1705949438937,-287.14726229,0.00025397,2]
[312536222,1705949438947,-410.22500817,0.00025397,2]
[312536225,1705949438958,-348.22440977,0.00025397,2]
[312536227,1705949438968,-675.1928,0.00025398,2]
[312536229,1705949438977,-434.00782237,0.00025398,2]
[312536231,1705949438988,-65.99217763,0.00025398,2]
[312536233,1705949438998,-813.0434,0.00025398,2]
[312536235,1705949439007,-613.91608616,0.00025399,2]
[312536237,1705949439016,-164.39,0.00025413,2]
[312536239,1705949439026,-398.24137312,0.00025497,2]
[312536241,1705949439035,-871.51902921,0.00025498,2]
[312536243,1705949439048,-676.17129601,0.00025498,2]
[312536245,1705949439063,-1704.66645896,0.00025498,2]
[312536248,1705949439077,-1699.13,0.00025498,2]
[312536383,1705949440364,-373.15774569,0.00025498,2]
[312536387,1705949440376,-272.14732002,0.00025498,2]
[312536390,1705949440387,-709.35189646,0.00025498,2]
[312536395,1705949440425,-948.53766592,0.00025498,2]
[312536397,1705949440438,-1614.05244,0.00025498,2]
[312536400,1705949440459,-22827.9622108,0.00025498,2]
[312536403,1705949440471,-5239.6,0.00025498,2]
[312536405,1705949440482,-92478.49055831,0.00025498,2]
[312536407,1705949440493,-407.0211133,0.00025499,2]
[312536409,1705949440502,-1000.0,0.00025516,2]
[312536411,1705949440513,-5721.9429381,0.00025536,2]
[312536413,1705949440524,-167.36,0.00025633,2]
[312536415,1705949440534,-176.4,0.00025751,2]
[312536417,1705949440544,-1417.52,0.00025784,2]
[312536419,1705949440554,-2358.41,0.00025982,2]
[312536421,1705949440568,-2814.0,0.00026,2]
[312536423,1705949440578,-4371.0,0.00026,2]
[312536425,1705949440590,-8031.81,0.00026021,2]
[312536427,1705949440600,-161.97,0.00026096,2]
[312536429,1705949440609,-5721.9429381,0.00026269,2]
[312536431,1705949440620,-213.92,0.00026575,2]
[312536433,1705949440629,-1000.0,0.00026575,2]
[312536435,1705949440642,-1417.52,0.00026665,2]
[312536437,1705949440652,-5646.71,0.0002691,2]
[312536439,1705949440662,-167.36,0.0002697,2]
[312536441,1705949440675,-417.60996336,0.00027,2]
[312536444,1705949440685,-155.0,0.00027,2]
[312536446,1705949440694,-5721.9429381,0.00027002,2]
[312536447,1705949440704,-159.62699238,0.00027352,2]
[312536449,1705949440715,-159.27,0.00027397,2]
[312536451,1705949440727,-49820.86,0.00027397,2]
[312536454,1705949440737,-30609.0,0.00027397,2]
[312536456,1705949440747,-1055.6,0.000274,2]
[312536458,1705949440756,-1055.6,0.000274,2]
[312536459,1705949440766,-1417.52,0.00027545,2]
[312536461,1705949440775,-30609.0,0.00027556,2]
[312536463,1705949440785,-432.2,0.00027568,2]
[312536466,1705949440795,-167.0,0.00027568,2]
[312536468,1705949440805,-2358.41,0.00027626,2]
[312536470,1705949440822,-30609.0,0.00027714,2]
[312536472,1705949440832,-5721.9429381,0.00027735,2]
[312536474,1705949440843,-225.17953146,0.00027872,2]
[312536543,1705949441617,-30383.82046854,0.00027872,2]
[312536545,1705949441626,-500.0,0.00027945,2]
[312536547,1705949441635,-689.05942203,0.00028,2]
[312536549,1705949441645,-30609.0,0.0002803,2]
[312536551,1705949441655,-150.25811552,0.00028092,2]
[312536553,1705949441665,-30609.0,0.00028189,2]
[312536555,1705949441677,-167.36,0.00028307,2]
[312536557,1705949441687,-1055.6,0.00028337,2]
[312536559,1705949441697,-161.97,0.0002834,2]
[312536561,1705949441706,-30609.0,0.00028347,2]
[312536563,1705949441720,-1000.0,0.00028351,2]
[312536565,1705949441731,-1417.52,0.00028426,2]
[312536567,1705949441741,-5721.9429381,0.00028469,2]
[312536569,1705949441750,-167.0,0.00028478,2]
[312536571,1705949441761,-30609.0,0.00028505,2]
[312536573,1705949441771,-30609.0,0.00028664,2]
[312536574,1705949441780,-159.27,0.00028767,2]
[312536577,1705949441789,-30609.0,0.00028822,2]
[312536579,1705949441799,-257.14,0.00029,7]
[312536581,1705949441814,-257.14,0.00029137,7]
[312536583,1705949441825,-5721.9429381,0.00029202,2]
[312536584,1705949441834,-2358.41,0.00029269,2]
[312536586,1705949441844,-257.14,0.00029274,7]
[312536588,1705949441853,-1417.52,0.00029307,2]
[312536590,1705949441864,-167.0,0.00029388,2]
[312536592,1705949441875,-257.14,0.00029411,7]
[312536594,1705949441885,-159.62699238,0.00029457,2]
[312536596,1705949441894,-613.91608616,0.00029471,4]
[312536598,1705949441904,-1351.41470627,0.00029506,2]
[312536600,1705949441914,-444.81337711,0.00029548,7]
[312536602,1705949441923,-1351.41470627,0.00029659,2]
[312536604,1705949441934,-150.0,0.000297,2]
[312536606,1705949441943,-150.0,0.000297,2]
[312536608,1705949441953,-158.12857,0.000297,2]
[312536610,1705949441962,-190.0,0.000297,2]
[312536612,1705949441971,-731.13762758,0.000298,2]
[312536614,1705949441980,-175.56419383,0.000298,2]
[312536616,1705949441994,-160.34,0.00029819,2]
[312536619,1705949442003,-432.2,0.00029832,2]
[312536621,1705949442013,-152.05042495,0.000299,2]
[312536622,1705949442022,-5721.9429381,0.00029935,2]
[312536624,1705949442032,-1055.6,0.0002999,2]
[312536627,1705949442042,-1055.6,0.0002999,2]
[312536629,1705949442052,-2621.14781123,0.00029999,2]
[312536631,1705949442066,-149883.16358729,0.0003,4]
[312536633,1705949442076,-2555.3552695,0.0003,4]
[312536635,1705949442085,-814.18421461,0.0003,4]
[312536637,1705949442096,-155.0,0.0003,4]
[312536639,1705949442105,-463.9958283,0.0003,4]
[312536641,1705949442115,-5623.05876082,0.0003,2]
[312536643,1705949442124,-155.0,0.0003,2]
[312536644,1705949442134,-6860.89000775,0.0003,4]
[312536647,1705949442143,-1267.19938805,0.0003,4]
[312536649,1705949442153,-155.0,0.0003,4]
[312536650,1705949442163,-72920.57629857,0.0003,4]
[312536653,1705949442173,-3653.39101213,0.0003,4]
[312536655,1705949442182,-838.43476686,0.0003,2]
[312536657,1705949442192,-374.85495157,0.0003,4]
[312536658,1705949442201,-1807.84533026,0.0003,4]
[312536660,1705949442210,-19026.01005334,0.0003,4]
[312536661,1705949442220,-683.63999189,0.0003,4]
[312536662,1705949442230,-905.41355492,0.0003,4]
[312536663,1705949442239,-155.0,0.0003,4]
[312536664,1705949442248,-9641.46795832,0.0003,2]
[312536665,1705949442258,-192.24957213,0.0003,2]
[312536666,1705949442267,-693.19279823,0.0003,2]
[312536667,1705949442277,-582.7666979,0.0003,2]
[312536668,1705949442287,-200.0,0.0003,2]
[312536669,1705949442297,-2000.0,0.0003,2]
[312536670,1705949442306,-200.0,0.0003,2]
[312536671,1705949442322,-2000.0,0.0003,2]
[312536672,1705949442332,-200.0,0.0003,2]
[312536673,1705949442341,-2000.0,0.0003,2]
[312536674,1705949442351,-200.0,0.0003,2]
[312536675,1705949442361,-688.11411178,0.0003,2]
[312536676,1705949442370,-688.11411178,0.0003,2]
[312536677,1705949442379,-688.11411178,0.0003,2]
[312536678,1705949442389,-688.11411178,0.0003,2]
[312536680,1705949442398,-688.11411178,0.0003,2]
[312536682,1705949442408,-688.11411178,0.0003,2]
[312536683,1705949442418,-688.11411178,0.0003,2]
[312536685,1705949442430,-688.11411178,0.0003,2]
[312536687,1705949442441,-688.11411178,0.0003,2]
[312536689,1705949442451,-688.11411178,0.0003,2]
[312536690,1705949442461,-688.11411178,0.0003,2]
[312536692,1705949442471,-688.11411178,0.0003,2]
[312536694,1705949442481,-688.11411178,0.0003,2]
[312536695,1705949442490,-688.11411178,0.0003,2]
[312536697,1705949442500,-688.11411178,0.0003,2]
[312536698,1705949442509,-688.11411178,0.0003,2]
[312536699,1705949442519,-688.11411178,0.0003,2]
[312536701,1705949442529,-688.11411178,0.0003,2]
[312536702,1705949442538,-688.11411178,0.0003,2]
[312536703,1705949442547,-688.11411178,0.0003,2]
[312536704,1705949442556,-688.11411178,0.0003,2]
[312536706,1705949442574,-688.11411178,0.0003,2]
[312536707,1705949442583,-688.11411178,0.0003,2]
[312536708,1705949442595,-688.11411178,0.0003,2]
[312536709,1705949442604,-688.11411178,0.0003,2]
[312536710,1705949442614,-688.11411178,0.0003,2]
[312536711,1705949442624,-688.11411178,0.0003,2]
[312536712,1705949442635,-688.11411178,0.0003,2]
[312536713,1705949442654,-688.11411178,0.0003,2]
[312536714,1705949442664,-688.11411178,0.0003,2]
[312536715,1705949442676,-688.11411178,0.0003,2]
[312536717,1705949442686,-688.11411178,0.0003,2]
[312536719,1705949442696,-688.11411178,0.0003,2]
[312536721,1705949442706,-688.11411178,0.0003,2]
[312536723,1705949442720,-688.11411178,0.0003,2]
[312536724,1705949442730,-688.11411178,0.0003,2]
[312536726,1705949442740,-688.11411178,0.0003,2]
[312536728,1705949442750,-688.11411178,0.0003,2]
[312536730,1705949442761,-688.11411178,0.0003,2]
[312536732,1705949442771,-688.11411178,0.0003,2]
[312536733,1705949442782,-688.11411178,0.0003,2]
[312536734,1705949442791,-688.11411178,0.0003,2]
[312536735,1705949442801,-688.11411178,0.0003,2]
[312536736,1705949442815,-688.11411178,0.0003,2]
[312536737,1705949442824,-688.11411178,0.0003,2]
[312536738,1705949442834,-688.11411178,0.0003,2]
[312536739,1705949442844,-688.11411178,0.0003,2]
[312536740,1705949442853,-688.11411178,0.0003,2]
[312536741,1705949442862,-688.11411178,0.0003,2]
[312536742,1705949442871,-688.11411178,0.0003,2]
[312536743,1705949442881,-203.0,0.0003,2]
[312536744,1705949442890,-2000.0,0.0003,2]
[312536745,1705949442900,-200.0,0.0003,2]
[312536746,1705949442909,-8178.6977325,0.00030058,2]
[312536747,1705949442918,-1055.6,0.00030069,2]
[312536748,1705949442928,-3967.2910057,0.00030079,2]
[312536749,1705949442938,-119233.6968047,0.00030079,2]
[312536750,1705949442947,-252.04058821,0.000301,4]
[312536751,1705949442957,-159.27,0.00030137,2]
[312536752,1705949442968,-153.84,0.00030137,2]
[312536753,1705949442978,-1417.52,0.00030188,2]
[312536754,1705949442988,-158.68,0.00030281,2]
[312536755,1705949442998,-167.0,0.00030298,2]
[312536756,1705949443009,-2000.0,0.000303,2]
[312536757,1705949443018,-200.0,0.000303,2]
[312536758,1705949443028,-2000.0,0.000303,2]
[312536759,1705949443037,-200.0,0.000303,2]
[312536760,1705949443046,-2000.0,0.000303,2]
[312536761,1705949443056,-200.0,0.000303,2]
[312536762,1705949443072,-822.9614086,0.000303,2]
[312536763,1705949443082,-200.0,0.000303,2]
[312536764,1705949443092,-1351.41470627,0.00030355,2]
[312536765,1705949443102,-160.34,0.0003052,2]
[312536766,1705949443112,-730.8349,0.0003058,2]
[312536767,1705949443122,-730.83489,0.0003059,2]
[312536768,1705949443131,-730.8349,0.0003059,2]
[312536769,1705949443141,-2000.0,0.00030603,2]
[312536770,1705949443151,-200.0,0.00030603,2]
[312536771,1705949443161,-2000.0,0.00030603,2]
[312536772,1705949443170,-200.0,0.00030603,2]
[312536773,1705949443179,-2000.0,0.00030603,2]
[312536774,1705949443189,-200.0,0.00030603,2]
[312536775,1705949443199,-200.0,0.00030603,2]
[312536776,1705949443208,-730.8349,0.0003062,2]
[312536777,1705949443218,-200.0,0.00030626,2]
[312536778,1705949443227,-179.0,0.00030626,2]
[312536779,1705949443237,-1351.41470627,0.00030632,2]
[312536781,1705949443246,-158.68,0.00030642,2]
[312536783,1705949443256,-730.8349,0.0003066,2]
[312536785,1705949443265,-5721.9429381,0.00030668,2]
[312536787,1705949443274,-730.8349,0.000307,2]
[312536789,1705949443284,-153.84,0.00030868,2]
[312536791,1705949443293,-2000.0,0.00030909,2]
[312536792,1705949443302,-200.0,0.00030909,2]
[312536793,1705949443316,-2000.0,0.00030909,2]
[312536795,1705949443326,-200.0,0.00030909,2]
[312536797,1705949443335,-2000.0,0.00030909,2]
[312536799,1705949443344,-200.0,0.00030909,2]
[312536801,1705949443354,-200.0,0.00030909,2]
[312536803,1705949443365,-2358.41,0.00030913,2]
[312536804,1705949443375,-1701.83496698,0.00031,10]
[312536805,1705949443384,-500.0,0.00031,3]
[312536806,1705949443394,-1600.05,0.00031,2]
[312536807,1705949443403,-158.68,0.00031002,2]
[312536808,1705949443413,-1000.0,0.00031186,2]
[312536809,1705949443422,-167.0,0.00031209,2]
[312536810,1705949443432,-2000.0,0.00031218,2]
[312536811,1705949443442,-200.0,0.00031218,2]
[312536812,1705949443451,-2000.0,0.00031218,2]
[312536813,1705949443460,-200.0,0.00031218,2]
[312536814,1705949443469,-2000.0,0.00031218,2]
[312536815,1705949443479,-200.0,0.00031218,2]
[312536816,1705949443488,-200.0,0.00031218,2]
[312536817,1705949443497,-160.34,0.00031221,2]
[312536818,1705949443506,-152.05042483,0.00031318,2]
[312536819,1705949443515,-158.68,0.00031363,2]
[312536820,1705949443525,-5721.9429381,0.00031401,2]
[312536821,1705949443534,-159.27,0.00031507,2]
[312536822,1705949443543,-876.64,0.00031507,2]
[312536823,1705949443554,-159.62699238,0.00031561,2]
[312536824,1705949443572,-153.84,0.00031598,2]
[312536825,1705949443581,-263.2,0.00031644,2]
[312536826,1705949443590,-180.0,0.00031644,2]
[312536827,1705949443600,-158.68,0.00031723,2]
[312536828,1705949443609,-694.97,0.00031767,2]
[312536829,1705949443618,-36232.3844506,0.000318,2]
[312536830,1705949443627,-160.34,0.00031923,2]
[312536831,1705949443636,-2163.41572719,0.00032,4]
[312536832,1705949443645,-298.40382139,0.00032,4]
[312536833,1705949443655,-155.0,0.00032,4]
[312536834,1705949443664,-13086.11608583,0.00032,4]
[312536835,1705949443678,-3000.0,0.00032,2]
[312536836,1705949443687,-3000.0,0.00032,2]
[312536837,1705949443696,-3000.0,0.00032,2]
[312536838,1705949443705,-3000.0,0.00032,2]
[312536839,1705949443716,-3000.0,0.00032,2]
[312536840,1705949443726,-3000.0,0.00032,2]
[312536841,1705949443734,-3000.0,0.00032,2]
[312536842,1705949443744,-3000.0,0.00032,2]
[312536843,1705949443754,-3000.0,0.00032,2]
[312536844,1705949443763,-3000.0,0.00032,2]
[312536845,1705949443772,-3000.0,0.00032,2]
[312536846,1705949443781,-3000.0,0.00032,2]
[312536847,1705949443791,-3000.0,0.00032,2]
[312536848,1705949443800,-3000.0,0.00032,2]
[312536850,1705949443812,-3000.0,0.00032,2]
[312536852,1705949443821,-3000.0,0.00032,2]
[312536853,1705949443831,-3000.0,0.00032,2]
[312536855,1705949443839,-3000.0,0.00032,2]
[312536857,1705949443848,-3000.0,0.00032,2]
[312536858,1705949443857,-3000.0,0.00032,2]
[312536859,1705949443866,-158.68,0.00032084,2]
[312536860,1705949443875,-432.2,0.00032096,2]
[312536861,1705949443886,-1055.6,0.00032109,2]
[312536862,1705949443895,-167.0,0.00032119,2]
[312536863,1705949443904,-5721.9429381,0.00032134,2]
[312536864,1705949443913,-153.84,0.00032329,2]
[312536865,1705949443922,-158.68,0.00032444,2]
[312536866,1705949443932,-160.34,0.00032624,2]
[312536867,1705949443941,-152.05042483,0.00032736,2]
[312536868,1705949443950,-158.68,0.00032805,2]
[312536869,1705949443959,-195.0,0.00032827,2]
[312536870,1705949443969,-5721.9429381,0.00032867,2]
[312536871,1705949443978,-226.11786442,0.00032874,4]
[312536872,1705949443987,-155.0,0.00032875,4]
[312536873,1705949443997,-155.6167209,0.00032875,2]
[312536874,1705949444006,-159.27,0.00032877,2]
[312536875,1705949444015,-511.94,0.00032877,15]
[312536876,1705949444024,-36311.40238999,0.00032995,2]
[312536877,1705949444034,-50000.0,0.00033,4]
[312536878,1705949444043,-203.0,0.00033,2]
[312536879,1705949444053,-153.84,0.00033059,2]
[312536880,1705949444067,-158.68,0.00033165,2]
[312536881,1705949444076,-160.34,0.00033325,2]
[312536882,1705949444086,-8936.31156564,0.000335,4]
[312536883,1705949444096,-158.68,0.00033526,2]
[312536884,1705949444105,-613.91608616,0.00033542,6]
[312536885,1705949444114,-5721.9429381,0.000336,2]
[312536886,1705949444124,-159.62699238,0.00033666,2]
[312536887,1705949444134,-662.09522237,0.00033677,4]
[312536888,1705949444143,-153.84,0.0003379,2]
[312536889,1705949444153,-158.68,0.00033886,2]
[312536890,1705949444164,-310.0,0.000339,4]
[312536891,1705949444174,-506.61948755,0.00034,4]
[312536892,1705949444183,-1000.0,0.00034,4]
[312536893,1705949444194,-500.0,0.00034,2]
[312536894,1705949444204,-1000.0,0.00034021,2]
[312536895,1705949444214,-160.34,0.00034026,2]
[312536896,1705949444224,-5000.0,0.0003409,2]
[312536897,1705949444234,-152.05042483,0.00034153,2]
[312536898,1705949444244,-159.27,0.00034247,2]
[312536899,1705949444254,-158.68,0.00034247,2]
[312536900,1705949444264,-5721.9429381,0.00034333,2]
[312536901,1705949444274,-432.2,0.00034359,2]
[312536902,1705949444283,-153.84,0.00034521,2]
[312536903,1705949444293,-876.64,0.00034703,2]
[312536904,1705949444302,-160.34,0.00034727,2]
[312536905,1705949444315,-8965.15292614,0.000349,4]
[312536906,1705949444325,-7149.37069638,0.000349,2]
[312536907,1705949444334,-7149.37069634,0.000349,2]
[312536908,1705949444343,-7149.37069634,0.000349,2]
[312536909,1705949444353,-7149.37069634,0.000349,2]
[312536910,1705949444363,-150.25881194,0.000349,2]
[312536911,1705949444374,-1055.6,0.0003499,2]
[312536912,1705949444384,-353.46228642,0.00035,4]
[312536913,1705949444394,-255.55498754,0.00035,4]
[312536914,1705949444404,-1261.11642949,0.00035,4]
[312536915,1705949444413,-185.92717611,0.00035,4]
[312536916,1705949444422,-23510.46100162,0.00035,4]
[312536917,1705949444432,-155.0,0.00035,2]
[312536918,1705949444441,-155.3777303,0.00035051,2]
[312536919,1705949444450,-5721.9429381,0.00035066,2]
[312536920,1705949444460,-153.84,0.00035251,2]
[312536921,1705949444470,-160.34,0.00035428,2]
[312536922,1705949444479,-152.05042483,0.00035571,2]
[312536923,1705949444488,-223.73309112,0.00035629,2]
[312536924,1705949444497,-150.0,0.00035729,7]
[312536925,1705949444507,-150.0,0.00035729,7]
[312536926,1705949444516,-150.0,0.00035729,7]
[312536927,1705949444526,-150.0,0.00035729,7]
[312536928,1705949444535,-150.00000001,0.00035729,7]
[312536929,1705949444544,-150.00000001,0.00035729,7]
[312536930,1705949444553,-159.62699238,0.0003577,2]
[312536931,1705949444569,-5721.9429381,0.000358,2]
[312536932,1705949444578,-590.0,0.00035843,5]
[312536933,1705949444588,-153.84,0.00035982,2]
[312536934,1705949444597,-373.68718079,0.00036,4]
[312536935,1705949444606,-203.0,0.00036,2]
[312536936,1705949444616,-7149.37069634,0.00036216,2]
[312536937,1705949444626,-1204.18813974,0.000364,2]
[312536938,1705949444635,-5142.73532362,0.0003641,4]
[312536939,1705949444646,-157.79,0.00036438,2]
[312536940,1705949444655,-648.66,0.000365,3]
[312536941,1705949444664,-648.66,0.000365,3]
[312536942,1705949444677,-648.66,0.000365,3]
[312536943,1705949444686,-648.66,0.000365,3]
[312536944,1705949444696,-648.66,0.000365,3]
[312536945,1705949444705,-648.66,0.000365,3]
[312536946,1705949444720,-648.66,0.000365,3]
[312536947,1705949444730,-648.66,0.000365,3]
[312536948,1705949444965,-648.66,0.000365,3]
[312536949,1705949444975,-648.66,0.000365,3]
[312536950,1705949444985,-648.66,0.000365,3]
[312536951,1705949444995,-648.66,0.000365,3]
[312536952,1705949445004,-648.66,0.000365,3]
[312536953,1705949445014,-648.66,0.000365,3]
[312536954,1705949445023,-648.66,0.000365,3]
[312536955,1705949445033,-648.66,0.000365,3]
[312536956,1705949445042,-648.66,0.000365,3]
[312536957,1705949445052,-648.66,0.000365,3]
[312536958,1705949445066,-648.66,0.000365,3]
[312536959,1705949445076,-648.66,0.000365,3]
[312536960,1705949445085,-157.77,0.000365,3]
[312536961,1705949445094,-157.77,0.000365,3]
[312536962,1705949445104,-152.23,0.000365,3]
[312536963,1705949445114,-152.23,0.000365,3]
[312536964,1705949445123,-5721.9429381,0.00036533,2]
[312536965,1705949445133,-511.94,0.00036613,15]
[312536966,1705949445142,-432.2,0.00036623,2]
[312536967,1705949445151,-153.84,0.00036712,2]
[312536968,1705949445161,-152.05042483,0.00036989,2]
[312536969,1705949445170,-309.8564897,0.00037,4]
[312536970,1705949445180,-12303.42922454,0.00037,2]
[312536971,1705949445190,-152.10519193,0.00037,2]
[312536972,1705949445200,-700.0,0.00037,2]
[312536973,1705949445209,-150.0,0.00037,2]
[312536974,1705949445219,-150.0,0.00037,2]
[312536975,1705949445228,-5721.9429381,0.00037266,2]
[312536976,1705949445238,-153.84,0.00037443,2]
[312536977,1705949445247,-5000.0,0.00037466,4]
[312536978,1705949445257,-279.69091136,0.00037548,2]
[312536979,1705949445266,-613.91608616,0.00037614,8]
[312536980,1705949445276,-155.0,0.00037701,5]
[312536981,1705949445286,-20000.0,0.00037775,2]
[312536982,1705949445295,-7149.37069634,0.00037795,2]
[312536983,1705949445305,-3000.0,0.000378,20]
[312536984,1705949445317,-3000.0,0.0003781,20]
[312536985,1705949445327,-3000.0,0.0003782,20]
[312536986,1705949445337,-3000.0,0.0003783,20]
[312536987,1705949445346,-210.78517353,0.00037832,10]
[312536988,1705949445356,-3000.0,0.0003784,20]
[312536989,1705949445365,-3000.0,0.0003785,20]
[312536990,1705949445375,-3000.0,0.0003786,20]
[312536991,1705949445385,-3000.0,0.0003787,20]
[312536992,1705949445395,-2404.0774927,0.00037875,11]
[312536993,1705949445405,-184.67294889,0.00037875,2]
[312536994,1705949445415,-159.62699238,0.00037875,2]
[312536995,1705949445425,-3000.0,0.0003788,20]
[312536996,1705949445434,-3000.0,0.0003789,20]
[312536997,1705949445444,-1055.6,0.0003789,2]
[312536998,1705949445453,-1055.6,0.0003789,2]
[312536999,1705949445463,-436.02,0.00037899,2]
[312537000,1705949445473,-436.02,0.00037899,2]
[312537001,1705949445483,-436.02,0.00037899,2]
[312537002,1705949445493,-436.02,0.00037899,2]
[312537003,1705949445502,-436.02,0.00037899,2]
[312537004,1705949445512,-436.02,0.00037899,2]
[312537005,1705949445521,-436.02,0.00037899,2]
[312537006,1705949445530,-436.02,0.00037899,2]
[312537007,1705949445540,-876.64,0.000379,2]
[312537008,1705949445549,-79364.83692388,0.000379,7]
[312537009,1705949445559,-83179.87718391,0.000379,2]
[312537010,1705949445572,-3000.0,0.000379,20]
[312537011,1705949445581,-446.13432454,0.000379,2]
[312537013,1705949445591,-667637.880781,0.000379,2]
[312537015,1705949445600,-3000.0,0.0003791,20]
[312537017,1705949445610,-3000.0,0.0003792,20]
[312537018,1705949445620,-3000.0,0.0003793,20]
[312537019,1705949445630,-150.0,0.00037938,2]
[312537020,1705949445639,-3000.0,0.0003794,20]
[312537021,1705949445648,-3000.0,0.0003795,20]
[312537022,1705949445658,-1500.0,0.00037956,2]
[312537024,1705949445669,-3000.0,0.0003796,21]
[312537025,1705949445678,-3000.0,0.0003797,21]
[312537026,1705949445687,-397.68553298,0.00037975,4]
[312537027,1705949445697,-1009.12489945,0.00037976,2]
[312537028,1705949445706,-3036.28868,0.0003798,21]
[312537029,1705949445721,-5721.9429381,0.00037999,2]
[312537030,1705949445731,-155.0,0.00038,2]
[312537031,1705949445740,-150.0,0.00038013,2]
[312537032,1705949445750,-150.0,0.00038017,2]
[312537033,1705949445761,-150.0,0.00038022,2]
[312537034,1705949445770,-500.0,0.00038038,2]
[312537035,1705949445780,-150.0,0.00038058,2]
[312537036,1705949445790,-150.0,0.00038092,2]
[312537037,1705949445800,-150.0,0.000381,2]
[312537038,1705949445810,-150.0,0.00038102,2]
[312537039,1705949445822,-150.0,0.00038103,2]
[312537041,1705949445832,-150.0,0.00038108,2]
[312537043,1705949445841,-164.39,0.0003812,2]
[312537045,1705949445850,-150.0,0.00038131,2]
[312537047,1705949445861,-150.0,0.00038136,2]
[312537049,1705949445871,-150.0,0.00038136,2]
[312537051,1705949445881,-5646.71,0.00038143,2]
[312537053,1705949445891,-150.0,0.00038144,2]